fUST/lending_fUST_20250610
["ID","MTS","AMOUNT","RATE_DAILY","PERIOD"]
[365228348,1749552639333,-500.0,0.00022117,2]
[365228349,1749552639341,-500.0,0.00022117,2]
[365228350,1749552639350,-500.0,0.00022117,2]
[365228351,1749552639364,-500.0,0.00022117,2]
[365228352,1749552639373,-500.0,0.00022117,2]
[365228353,1749552639382,-500.0,0.00022117,2]
[365228354,1749552639391,-500.0,0.00022117,2]
[365228355,1749552639401,-500.0,0.00022117,2]
[365228356,1749552639410,-500.0,0.00022117,2]
[365228357,1749552639419,-500.0,0.00022117,2]
[365228358,1749552639429,-500.0,0.00022117,2]
[365228359,1749552639439,-3000.0,0.0002212,2]
[365228360,1749552639448,-3000.0,0.0002212,2]
[365228361,1749552639458,-5986.742737,0.0002213,2]
[365228362,1749552639467,-3000.0,0.0002213,2]
[365228363,1749552639476,-3000.0,0.0002214,2]
[365228364,1749552639486,-3000.0,0.0002215,2]
[365228365,1749552639495,-4116.1614181,0.0002215,2]
[365228366,1749552639505,-3000.0,0.0002216,2]
[365228367,1749552639514,-311.27891864,0.00022169,2]
[365228368,1749552639523,-3000.0,0.0002217,2]
[365228369,1749552639533,-3000.0,0.0002218,2]
[365228370,1749552639542,-3000.0,0.0002219,2]
[365228371,1749552639551,-151.0,0.00022191,7]
[365228372,1749552639562,-460.0,0.00022191,4]
[365228373,1749552639572,-585.79,0.00022191,4]
[365228374,1749552639581,-460.0,0.00022191,4]
[365228375,1749552639591,-564.59183067,0.00022191,4]
[365228376,1749552639600,-300.96930371,0.00022191,4]
[365228377,1749552639610,-460.0,0.00022191,4]
[365228378,1749552639619,-939.3,0.00022191,4]
[365228379,1749552639628,-460.0,0.00022191,4]
[365228380,1749552639639,-1398.04,0.00022191,4]
[365228381,1749552639649,-460.0,0.00022191,4]
[365228382,1749552639660,-460.0,0.00022191,4]
[365228383,1749552639670,-460.0,0.00022191,2]
[365228384,1749552639680,-460.0,0.00022191,4]
[365228385,1749552639690,-587.6,0.00022191,4]
[365228386,1749552639700,-460.0,0.00022191,4]
[365228387,1749552639711,-1162.78,0.00022191,4]
[365228388,1749552639720,-460.0,0.00022191,4]
[365228389,1749552639731,-460.0,0.00022191,4]
[365228390,1749552639741,-460.0,0.00022191,4]
[365228391,1749552639750,-460.0,0.00022191,4]
[365228392,1749552639759,-460.0,0.00022191,4]
[365228393,1749552639768,-460.0,0.00022191,4]
[365228394,1749552639778,-1424.64,0.00022191,4]
[365228395,1749552639788,-460.0,0.00022191,4]
[365228396,1749552639799,-460.0,0.00022191,4]
[365228397,1749552639808,-460.0,0.00022191,4]
[365228398,1749552639819,-460.0,0.00022191,4]
[365228399,1749552639829,-1190.27,0.00022191,4]
[365228400,1749552639839,-460.0,0.00022191,4]
[365228401,1749552639849,-2506.66,0.00022191,4]
[365228402,1749552639858,-714.53,0.00022191,4]
[365228403,1749552639868,-460.0,0.00022191,4]
[365228404,1749552639877,-460.0,0.00022191,4]
[365228405,1749552639887,-1351.11,0.00022191,4]
[365228406,1749552639896,-1521.42,0.00022191,4]
[365228407,1749552639906,-460.0,0.00022191,4]
[365228408,1749552639915,-621.1,0.00022191,4]
[365228409,1749552639924,-460.0,0.00022191,4]
[365228410,1749552639933,-3000.0,0.000222,2]
[365228411,1749552639942,-160.65084302,0.000222,69]
[365228412,1749552639952,-3000.0,0.0002221,2]
[365228413,1749552639961,-265.76172619,0.0002221,6]
[365228414,1749552639971,-187.37312115,0.00022216,2]
[365228415,1749552639980,-3000.0,0.0002222,2]
[365228416,1749552639989,-3000.0,0.0002223,2]
[365228417,1749552639999,-3000.0,0.0002224,2]
[365228418,1749552640008,-3000.0,0.0002225,2]
[365228419,1749552640017,-3000.0,0.0002226,2]
[365228420,1749552640026,-3000.0,0.0002227,2]
[365228421,1749552640035,-3000.0,0.0002228,2]
[365228422,1749552640044,-3000.0,0.0002229,2]
[365228423,1749552640053,-3000.0,0.000223,2]
[365228424,1749552640062,-3000.0,0.0002231,2]
[365228425,1749552640071,-265.76172619,0.00022314,7]
[365228427,1749552640080,-3000.0,0.0002232,2]
[365228428,1749552640090,-3000.0,0.0002233,2]
[365228429,1749552640099,-3000.0,0.0002234,2]
[365228430,1749552640108,-3000.0,0.0002235,2]
[365228431,1749552640117,-3000.0,0.0002236,2]
[365228432,1749552640126,-3000.0,0.0002237,2]
[365228433,1749552640135,-3000.0,0.0002238,2]
[365228434,1749552640144,-3000.0,0.0002239,2]
[365228435,1749552640153,-3000.0,0.000224,2]
[365228436,1749552640163,-3000.0,0.0002241,2]
[365228437,1749552640172,-265.76172619,0.00022417,7]
[365228438,1749552640181,-3000.0,0.0002242,2]
[365228439,1749552640190,-3000.0,0.0002243,2]
[365228440,1749552640199,-3000.0,0.0002244,2]
[365228441,1749552640208,-3000.0,0.0002245,2]
[365228442,1749552640217,-3000.0,0.0002246,2]
[365228443,1749552640227,-460.0,0.00022465,4]
[365228444,1749552640238,-460.0,0.00022465,4]
[365228445,1749552640247,-460.0,0.00022465,4]
[365228446,1749552640255,-939.3,0.00022465,4]
[365228447,1749552640265,-580.0,0.00022465,4]
[365228448,1749552640274,-1398.04,0.00022465,4]
[365228449,1749552640284,-460.0,0.00022465,4]
[365228450,1749552640293,-460.0,0.00022465,4]
[365228451,1749552640303,-460.0,0.00022465,2]
[365228452,1749552640312,-486.55078022,0.00022465,4]
[365228453,1749552640321,-587.6,0.00022465,4]
[365228454,1749552640331,-460.0,0.00022465,4]
[365228455,1749552640340,-1162.78,0.00022465,4]
[365228456,1749552640349,-460.0,0.00022465,4]
[365228457,1749552640362,-460.0,0.00022465,4]
[365228458,1749552640372,-590.0,0.00022465,4]
[365228459,1749552640381,-460.0,0.00022465,4]
[365228460,1749552640390,-460.0,0.00022465,4]
[365228461,1749552640399,-460.0,0.00022465,4]
[365228462,1749552640409,-1424.64,0.00022465,4]
[365228463,1749552640418,-460.0,0.00022465,4]
[365228464,1749552640528,-460.0,0.00022465,4]
[365228465,1749552640538,-460.0,0.00022465,4]
[365228466,1749552640547,-460.0,0.00022465,4]
[365228467,1749552640556,-1190.27,0.00022465,4]
[365228468,1749552640566,-460.0,0.00022465,4]
[365228469,1749552640575,-714.53,0.00022465,4]
[365228470,1749552640584,-2506.66,0.00022465,4]
[365228471,1749552640593,-460.0,0.00022465,4]
[365228472,1749552640603,-460.0,0.00022465,4]
[365228473,1749552640613,-1351.11,0.00022465,4]
[365228474,1749552640622,-1521.42,0.00022465,4]
[365228475,1749552640631,-460.0,0.00022465,4]
[365228476,1749552640641,-621.1,0.00022465,4]
[365228477,1749552640650,-3000.0,0.0002247,2]
[365228478,1749552640660,-3000.0,0.0002248,2]
[365228479,1749552640669,-3000.0,0.0002249,2]
[365228480,1749552640679,-3000.0,0.000225,2]
[365228481,1749552640688,-3000.0,0.0002251,2]
[365228482,1749552640697,-500.0,0.00022519,2]
[365228483,1749552640708,-500.0,0.00022519,2]
[365228484,1749552640717,-3000.0,0.0002252,2]
[365228485,1749552640727,-265.76172619,0.00022521,7]
[365228486,1749552640736,-3000.0,0.0002253,2]
[365228487,1749552640746,-4095.109001,0.0002254,2]
[365228488,1749552640756,-159.173599,0.0002254,20]
[365228489,1749552640765,-265.76172619,0.00022624,7]
[365228490,1749552640775,-5000.0,0.00022665,2]
[365228491,1749552640784,-265.76172619,0.00022728,7]
[365228492,1749552640793,-502.3605623,0.00022738,2]
[365228493,1749552640802,-151.0,0.00022739,7]
[365228494,1749552640812,-151.0,0.00022739,7]
[365228495,1749552640821,-460.0,0.00022739,4]
[365228496,1749552640832,-158.564883,0.00022739,7]
[365228497,1749552640841,-301.43630465,0.00022739,4]
[365228498,1749552640850,-380.0,0.00022739,4]
[365228499,1749552640860,-939.3,0.00022739,4]
[365228500,1749552640869,-1398.04,0.00022739,4]
[365228501,1749552640879,-460.0,0.00022739,4]
[365228502,1749552640888,-460.0,0.00022739,4]
[365228503,1749552640898,-460.0,0.00022739,2]
[365228504,1749552640907,-587.6,0.00022739,4]
[365228505,1749552640916,-460.0,0.00022739,4]
[365228506,1749552640926,-1162.78,0.00022739,4]
[365228507,1749552640935,-460.0,0.00022739,4]
[365228508,1749552640944,-460.0,0.00022739,4]
[365228509,1749552640954,-460.0,0.00022739,4]
[365228510,1749552640963,-460.0,0.00022739,4]
[365228511,1749552640971,-460.0,0.00022739,4]
[365228512,1749552640981,-1424.64,0.00022739,4]
[365228513,1749552640990,-460.0,0.00022739,4]
[365228514,1749552640999,-460.0,0.00022739,4]
[365228515,1749552641010,-460.0,0.00022739,4]
[365228516,1749552641019,-460.0,0.00022739,4]
[365228517,1749552641028,-1190.27,0.00022739,4]
[365228518,1749552641037,-460.0,0.00022739,4]
[365228519,1749552641046,-714.53,0.00022739,4]
[365228520,1749552641056,-2506.66,0.00022739,4]
[365228521,1749552641065,-460.0,0.00022739,4]
[365228522,1749552641074,-460.0,0.00022739,4]
[365228523,1749552641083,-1351.11,0.00022739,4]
[365228524,1749552641093,-1521.42,0.00022739,4]
[365228525,1749552641102,-460.0,0.00022739,4]
[365228526,1749552641111,-621.1,0.00022739,4]
[365228527,1749552641120,-3154.71,0.00022761,2]
[365228528,1749552641130,-502.25479299,0.00022763,2]
[365228529,1749552641139,-501.88713235,0.00022763,2]
[365228530,1749552641149,-735.9845796,0.00022795,2]
[365228531,1749552641158,-265.76172619,0.00022831,8]
[365228532,1749552641167,-500.26030794,0.00022854,2]
[365228533,1749552641176,-501.1633097,0.00022854,2]
[365228534,1749552641186,-500.0,0.00022854,2]
[365228535,1749552641195,-500.0,0.00022854,2]
[365228536,1749552641205,-215.0738,0.00022872,2]
[365228537,1749552641214,-754.0,0.00022888,2]
[365228538,1749552641224,-265.76172619,0.00022934,8]
[365228539,1749552641233,-222.0,0.00022942,2]
[365228540,1749552641243,-213.1263252,0.0002295,7]
[365228541,1749552641253,-6307.19495374,0.0002295,7]
[365228542,1749552641263,-6307.19495374,0.0002295,7]
[365228543,1749552641272,-500.0,0.00022964,2]
[365228544,1749552641282,-305.79792962,0.00022964,2]
[365228545,1749552641291,-150.0,0.00022995,2]
[365228546,1749552641301,-150.184,0.00022995,2]
[365228547,1749552641310,-150.0,0.00022995,2]
[365228548,1749552641320,-150.0,0.00022995,2]
[365228549,1749552641329,-975.804,0.00022995,2]
[365228550,1749552641339,-653.0,0.00022995,2]
[365228551,1749552641348,-2202.679,0.00022995,2]
[365228552,1749552641362,-405.0,0.00022995,2]
[365228553,1749552641372,-3439.46512918,0.00023,2]
[365228554,1749552641381,-45082.01,0.00023,2]
[365228555,1749552641391,-151.0,0.00023,7]
[365228556,1749552641401,-151.0,0.00023,7]
[365228557,1749552641411,-151.0,0.00023,7]
[365228558,1749552641420,-151.0,0.00023,7]
[365228559,1749552641430,-151.0,0.00023,7]
[365228560,1749552641439,-151.0,0.00023,7]
[365228561,1749552641450,-151.0,0.00023,7]
[365228562,1749552641459,-151.0,0.00023,7]
[365228563,1749552641468,-151.0,0.00023,7]
[365228564,1749552641478,-283.580109,0.00023,7]
[365228565,1749552641487,-151.0,0.00023,7]
[365228566,1749552641496,-152.185453,0.00023,7]
[365228567,1749552641506,-152.75216,0.00023,7]
[365228568,1749552641515,-151.0,0.00023,7]
[365228569,1749552641525,-151.0,0.00023,7]
[365228570,1749552641534,-5382.04727754,0.00023,2]
[365228571,1749552641543,-151.0,0.00023,7]
[365228572,1749552641552,-151.0,0.00023,7]
[365228573,1749552641561,-151.0,0.00023,7]
[365228574,1749552641571,-279.841274,0.00023,7]
[365228575,1749552641580,-288.66,0.00023,7]
[365228576,1749552641590,-968.06059058,0.00023,60]
[365228577,1749552641600,-52621.93269111,0.00023,2]
[365228578,1749552641609,-142892.870738,0.00023,20]
[365228579,1749552641623,-1545.96240079,0.00023,20]
[365228587,1749552643559,-508.86,0.00023,20]
[365228605,1749552646534,-61403.99155771,0.00023,20]
[365228606,1749552646641,-14033.39706582,0.00023,20]
[365228607,1749552646650,-790.86,0.00023003,3]
[365228608,1749552646659,-395.44,0.00023003,3]
[365228609,1749552646668,-400.0,0.00023013,2]
[365228610,1749552646678,-460.0,0.00023013,4]
[365228611,1749552646688,-939.3,0.00023013,4]
[365228612,1749552646697,-1398.04,0.00023013,4]
[365228614,1749552646707,-460.0,0.00023013,4]
[365228616,1749552646716,-460.0,0.00023013,4]
[365228617,1749552646725,-460.0,0.00023013,2]
[365228618,1749552646734,-587.6,0.00023013,4]
[365228619,1749552646744,-460.0,0.00023013,4]
[365228620,1749552646753,-1162.78,0.00023013,4]
[365228621,1749552646762,-460.0,0.00023013,4]
[365228622,1749552646771,-338.15871805,0.00023013,4]
[365228623,1749552646780,-460.0,0.00023013,4]
[365228624,1749552646789,-460.0,0.00023013,4]
[365228625,1749552646798,-373.06880565,0.00023013,4]
[365228626,1749552646807,-1424.64,0.00023013,4]
[365228627,1749552646816,-460.0,0.00023013,4]
[365228628,1749552646825,-460.0,0.00023013,4]
[365228629,1749552646834,-460.0,0.00023013,4]
[365228630,1749552646843,-460.0,0.00023013,4]
[365228631,1749552646852,-1190.27,0.00023013,4]
[365228632,1749552646862,-403.13753151,0.00023013,4]
[365228633,1749552646871,-714.53,0.00023013,4]
[365228634,1749552646880,-2506.66,0.00023013,4]
[365228635,1749552646889,-460.0,0.00023013,4]
[365228636,1749552646898,-460.0,0.00023013,4]
[365228637,1749552646907,-1351.11,0.00023013,4]
[365228638,1749552646917,-1521.42,0.00023013,4]
[365228639,1749552646926,-460.0,0.00023013,4]
[365228640,1749552646935,-621.1,0.00023013,4]
[365228641,1749552646944,-161.0,0.00023014,7]
[365228642,1749552646953,-265.76172619,0.00023038,8]
[365228643,1749552646963,-162.85516593,0.00023041,2]
[365228644,1749552646972,-162.85516592,0.00023041,2]
[365228645,1749552646981,-500.0,0.00023062,2]
[365228646,1749552646991,-505.82687814,0.00023067,2]
[365228647,1749552647000,-1000.0,0.00023067,2]
[365228648,1749552647009,-2649.373062,0.0002307,3]
[365228649,1749552647018,-1031.09,0.000231,7]
[365228650,1749552647027,-757.0,0.00023111,7]
[365228651,1749552647036,-1091.1586212,0.00023123,2]
[365228652,1749552647045,-265.76172619,0.00023141,8]
[365228653,1749552647054,-600.0,0.00023171,2]
[365228654,1749552647064,-1322.0,0.00023204,2]
[365228655,1749552647073,-5000.0,0.00023213,2]
[365228656,1749552647082,-5888.0,0.00023233,2]
[365228657,1749552647091,-265.76172619,0.00023245,8]
[365228658,1749552647100,-800.0,0.00023261,2]
[365228659,1749552647110,-400.0,0.00023287,2]
[365228660,1749552647119,-460.0,0.00023287,4]
[365228661,1749552647128,-939.3,0.00023287,4]
[365228662,1749552647137,-1398.04,0.00023287,4]
[365228663,1749552647146,-460.0,0.00023287,4]
[365228664,1749552647155,-460.0,0.00023287,4]
[365228665,1749552647165,-460.0,0.00023287,2]
[365228666,1749552647174,-587.6,0.00023287,4]
[365228667,1749552647183,-264.19011952,0.00023287,4]
[365228707,1749553843929,-195.80988048,0.00023287,4]
[365228710,1749553843939,-72.23919684,0.00023287,4]
[365228718,1749553846695,-943.03690943,0.00023287,4]
[365228721,1749554920324,2659.10264375,0.00024766,120]
[365228744,1749555040587,-895.55699355,0.00018,2]
[365228784,1749556232135,-446.57285285,0.00018,2]
[365228785,1749556232223,-11605.43825621,0.00018,2]
[365228786,1749556232234,-9625.51536992,0.00023,7]
[365228787,1749556232244,-147.50389373,0.00023287,4]
[365228788,1749556232371,-460.0,0.00023287,4]
[365228789,1749556232383,-474.05,0.00023287,4]
[365228790,1749556232395,-460.0,0.00023287,4]
[365228791,1749556232405,-1424.64,0.00023287,4]
[365228792,1749556232415,-460.0,0.00023287,4]
[365228793,1749556232424,-460.0,0.00023287,4]
[365228794,1749556232434,-460.0,0.00023287,4]
[365228795,1749556232445,-460.0,0.00023287,4]
[365228796,1749556232454,-1190.27,0.00023287,4]
[365228797,1749556232464,-714.53,0.00023287,4]
[365228798,1749556232474,-2506.66,0.00023287,4]
[365228799,1749556232483,-460.0,0.00023287,4]
[365228800,1749556232493,-460.0,0.00023287,4]
[365228801,1749556232503,-1351.11,0.00023287,4]
[365228802,1749556232513,-1521.42,0.00023287,4]
[365228803,1749556232523,-460.0,0.00023287,4]
[365228804,1749556232532,-621.1,0.00023287,4]
[365228805,1749556232542,-319.0,0.000233,2]
[365228806,1749556232551,-183.10091402,0.00023301,2]
[365228807,1749556232561,-1322.0,0.00023319,2]
[365228808,1749556232570,-800.0,0.00023338,2]
[365228809,1749556232580,-162.85516593,0.00023342,2]
[365228810,1749556232590,-265.76172619,0.00023348,9]
[365228811,1749556232599,-757.0,0.00023371,7]
[365228812,1749556232609,-1322.0,0.00023372,2]
[365228813,1749556232619,-812.17843602,0.00023402,2]
[365228814,1749556232628,-1000.0,0.00023402,2]
[365228815,1749556232637,-4116.16141809,0.00023405,2]
[365228816,1749556232647,-601.48050061,0.00023412,2]
[365228817,1749556232657,-800.0,0.00023422,2]
[365228818,1749556232666,-1322.0,0.00023434,2]
[365228819,1749556232675,-187.37312115,0.00023438,2]
[365228820,1749556232684,-265.76172619,0.00023452,9]
[365228821,1749556232694,-1349.466682,0.000235,2]
[365228822,1749556232703,-209.898236,0.000235,30]
[365228823,1749556232712,-70984.65280279,0.000235,2]
[365228824,1749556232722,-1000.0,0.00023512,2]
[365228825,1749556232731,-200.71821639,0.00023513,3]
[365228826,1749556232740,-316.0,0.00023513,3]
[365228827,1749556232750,-316.0,0.00023513,3]
[365228828,1749556232759,-316.0,0.00023513,3]
[365228829,1749556232768,-316.0,0.00023513,3]
[365228830,1749556232778,-328.020454,0.00023513,3]
[365228831,1749556232787,-1001.71124826,0.00023521,2]
[365228832,1749556232797,-165.909082,0.00023521,7]
[365228833,1749556232806,-151.0,0.00023521,7]
[365228834,1749556232815,-260.439774,0.00023521,7]
[365228835,1749556232825,-11493.51060307,0.00023541,2]
[365228836,1749556232834,-151.0,0.00023541,7]
[365228837,1749556232843,-151.0,0.00023541,7]
[365228838,1749556232853,-265.76172619,0.00023555,9]
[365228839,1749556232862,-151.0,0.00023561,7]
[365228840,1749556232871,-400.0,0.00023561,2]
[365228841,1749556232880,-460.0,0.00023561,4]
[365228842,1749556232892,-200.0,0.00023561,4]
[365228843,1749556232901,-200.0,0.00023561,4]
[365228844,1749556232910,-200.0,0.00023561,4]
[365228845,1749556232919,-200.0,0.00023561,4]
[365228846,1749556232930,-200.0,0.00023561,4]
[365228847,1749556232939,-200.0,0.00023561,4]
[365228848,1749556232948,-201.55034724,0.00023561,4]
[365228849,1749556232957,-939.3,0.00023561,4]
[365228850,1749556232970,-1398.04,0.00023561,4]
[365228851,1749556232979,-460.0,0.00023561,4]
[365228852,1749556232988,-460.0,0.00023561,4]
[365228853,1749556232998,-460.0,0.00023561,2]
[365228854,1749556233007,-587.6,0.00023561,4]
[365228855,1749556233017,-460.0,0.00023561,4]
[365228856,1749556233027,-1162.78,0.00023561,4]
[365228857,1749556233036,-460.0,0.00023561,4]
[365228858,1749556233045,-460.0,0.00023561,4]
[365228859,1749556233055,-1424.64,0.00023561,4]
[365228860,1749556233065,-460.0,0.00023561,4]
[365228861,1749556233074,-460.0,0.00023561,4]
[365228862,1749556233083,-460.0,0.00023561,4]
[365228863,1749556233093,-192.8,0.00023561,4]
[365228864,1749556233103,-1190.27,0.00023561,4]
[365228865,1749556233112,-714.53,0.00023561,4]
[365228866,1749556233122,-2506.66,0.00023561,4]
[365228867,1749556233131,-470.0,0.00023561,4]
[365228868,1749556233141,-441.22844063,0.00023561,4]
[365228869,1749556233150,-1351.11,0.00023561,4]
[365228870,1749556233160,-1521.42,0.00023561,4]
[365228871,1749556233170,-460.0,0.00023561,4]
[365228872,1749556233179,-621.1,0.00023561,4]
[365228873,1749556233190,-18420.5970856,0.00023575,2]
[365228874,1749556233200,-152.94753,0.00023575,7]
[365228875,1749556233210,-153.725742,0.00023575,7]
[365228876,1749556233220,-151.0,0.00023575,7]
[365228877,1749556233229,-151.0,0.00023575,7]
[365228878,1749556233238,-151.0,0.00023575,7]
[365228879,1749556233249,-151.0,0.00023575,7]
[365228880,1749556233258,-151.0,0.00023575,7]
[365228881,1749556233267,-151.0,0.00023575,7]
[365228882,1749556233277,-151.0,0.00023575,7]
[365228883,1749556233287,-1076.0,0.00023599,2]
[365228884,1749556233296,-151.0,0.000236,9]
[365228885,1749556233306,-2401.62,0.000236,2]
[365228886,1749556233315,-15425.28236219,0.00023609,2]
[365228887,1749556233325,-510.51689945,0.00023609,2]
[365228888,1749556233336,-20234.16841803,0.00023613,7]
[365228889,1749556233346,-375.6232858,0.00023615,2]
[365228890,1749556233356,-15425.28236219,0.00023625,2]
[365228891,1749556233365,-757.0,0.00023632,7]
[365228892,1749556233375,-15425.28236219,0.00023643,2]
[365228893,1749556233385,-151.0,0.00023647,7]
[365228894,1749556233394,-18420.5970856,0.00023647,2]
[365228895,1749556233404,-265.76172619,0.00023659,9]
[365228896,1749556233413,-1031.0,0.00023659,7]
[365228897,1749556233423,-503.80614323,0.00023673,2]
[365228898,1749556233433,-500.0,0.00023673,2]
[365228899,1749556233443,-500.0,0.00023673,2]
[365228900,1749556233454,-501.80257366,0.00023673,2]
[365228901,1749556233464,-500.0,0.00023673,2]
[365228902,1749556233473,-600.0,0.00023673,2]
[365228903,1749556233483,-500.0,0.00023673,2]
[365228904,1749556233493,-500.0,0.00023673,2]
[365228905,1749556233505,-500.99943313,0.00023673,2]
[365228906,1749556233515,-500.0,0.00023673,2]
[365228907,1749556233524,-18420.5970856,0.0002368,2]
[365228908,1749556233534,-1322.0,0.00023683,2]
[365228909,1749556233544,-151.0,0.00023685,7]
[365228910,1749556233555,-18420.5970856,0.00023686,2]
[365228911,1749556233565,-200.89142611,0.00023699,2]
[365228912,1749556233576,-61864.92,0.000237,7]
[365228913,1749556233585,-151.0,0.000237,7]
[365228914,1749556233596,-158.362726,0.000237,7]
[365228915,1749556233605,-151.0,0.000237,7]
[365228916,1749556233614,-227.861234,0.000237,7]
[365228917,1749556233624,-151.0,0.000237,7]
[365228918,1749556233634,-152.037887,0.000237,7]
[365228919,1749556233644,-151.0,0.000237,7]
[365228920,1749556233653,-151.0,0.000237,7]
[365228921,1749556233663,-151.0,0.000237,7]
[365228922,1749556233673,-298.529494,0.000237,7]
[365228923,1749556233683,-3943.38,0.00023709,2]
[365228924,1749556233692,-440.19778143,0.00023753,3]
[365228925,1749556233702,-5000.0,0.00023761,2]
[365228926,1749556233711,-265.76172619,0.00023762,9]
[365228927,1749556233720,-500.57016739,0.00023773,2]
[365228928,1749556233730,-12492.39244627,0.0002378,5]
[365228929,1749556233740,-1000.0,0.0002378,2]
[365228930,1749556233750,-1000.0,0.0002378,2]
[365228931,1749556233759,-1000.0,0.0002378,2]
[365228932,1749556233769,-1000.0,0.0002378,2]
[365228933,1749556233778,-1000.0,0.0002378,2]
[365228934,1749556233788,-1000.0,0.0002378,2]
[365228935,1749556233797,-1000.0,0.0002378,2]
[365228936,1749556233807,-1000.0,0.0002378,2]
[365228937,1749556233817,-1000.0,0.0002378,2]
[365228938,1749556233827,-1000.0,0.0002378,2]
[365228939,1749556233837,-597.83924358,0.0002378,2]
[365228940,1749556233847,-500.0,0.0002378,2]
[365228941,1749556233856,-1031.0,0.00023782,7]
[365228942,1749556233866,-2200.0,0.00023787,2]
[365228943,1749556233876,-500.0,0.00023787,2]
[365228944,1749556233887,-287198.3022358,0.000238,3]
[365228945,1749556233904,-2191.50398952,0.000238,3]
[365228959,1749556238064,-500.0,0.000238,3]
[365228982,1749556243381,-504.28972859,0.000238,3]
[365228983,1749556243394,-6223.2,0.000238,3]
[365228984,1749556243406,-6445.37285994,0.000238,3]
[365228985,1749556243418,-6949.4137499,0.000238,3]
[365228986,1749556243428,-151.0,0.000238,7]
[365228987,1749556243437,-160.0,0.000238,3]
[365228988,1749556243447,-151.0,0.000238,7]
[365228989,1749556243457,-151.0,0.000238,7]
[365228990,1749556243467,-161.067334,0.000238,7]
[365228991,1749556243476,-166.25829,0.000238,7]
[365228992,1749556243486,-151.0,0.000238,7]
[365228993,1749556243496,-213.1263252,0.000238,3]
[365228994,1749556243506,-151.0,0.000238,7]
[365228995,1749556243516,-151.0,0.000238,7]
[365228996,1749556243526,-151.0,0.000238,7]
[365228997,1749556243536,-151.0,0.000238,7]
[365228998,1749556243546,-160.0,0.000238,3]
[365228999,1749556243555,-151.587511,0.000238,7]
[365229000,1749556243565,-521.406122,0.000238,7]
[365229001,1749556243575,-424.12530924,0.000238,3]
[365229002,1749556243584,-521.406122,0.000238,7]
[365229003,1749556243594,-834.9046531,0.000238,3]
[365229004,1749556243603,-151.0,0.000238,7]
[365229005,1749556243613,-151.0,0.000238,7]
[365229006,1749556243622,-151.0,0.000238,7]
[365229007,1749556243631,-160.0,0.000238,3]
[365229008,1749556243641,-178.931698,0.000238,7]
[365229009,1749556243651,-151.0,0.000238,7]
[365229010,1749556243660,-151.0,0.000238,7]
[365229011,1749556243670,-163.207857,0.000238,7]
[365229012,1749556243679,-326.327635,0.000238,7]
[365229013,1749556243689,-163.207857,0.000238,7]
[365229014,1749556243698,-151.0,0.000238,7]
[365229015,1749556243708,-326.327635,0.000238,7]
[365229016,1749556243717,-229.6792923,0.000238,3]
[365229017,1749556243727,-151.0,0.000238,7]
[365229018,1749556243736,-151.0,0.000238,7]
[365229019,1749556243745,-151.0,0.000238,7]
[365229020,1749556243755,-151.0,0.000238,7]